fUSD/lending_fUSD_20260205
["ID","MTS","AMOUNT","RATE_DAILY","PERIOD"]
[404556539,1770287440560,-166.66,0.00011707,2]
[404556540,1770287440571,-10549.8,0.0001178,2]
[404556541,1770287440581,-1600.0,0.00011822,2]
[404556542,1770287440591,-1012.36,0.00011829,2]
[404556543,1770287440602,-2181.71,0.00011871,2]
[404556544,1770287440612,-255.0,0.00011942,2]
[404556545,1770287440622,-150.0,0.00012051,2]
[404556546,1770287440632,-1012.36,0.00012103,2]
[404556547,1770287440645,-152.0,0.00012351,3]
[404556548,1770287440655,-1012.36,0.00012377,2]
[404556549,1770287440666,-16341.73193584,0.00012384,2]
[404556550,1770287440676,-23859.91974744,0.00012384,2]
[404556551,1770287440687,-3596.00026265,0.0001242,2]
[404556552,1770287440697,-49084.31274146,0.00012456,2]
[404556553,1770287440708,-2351.0,0.00012551,2]
[404556554,1770287440717,-1012.36,0.00012651,2]
[404556555,1770287440727,-152.0,0.00012797,3]
[404556556,1770287440737,-9392.29,0.00012906,2]
[404556557,1770287440747,-1012.36,0.00012925,2]
[404556558,1770287440761,-152.0,0.00012965,4]
[404556559,1770287440771,-323.47,0.00013063,2]
[404556560,1770287440781,-433.0,0.00013076,2]
[404556561,1770287440791,-1600.0,0.00013136,2]
[404556562,1770287440800,-16341.73193584,0.00013172,2]
[404556563,1770287440811,-23859.91974744,0.00013172,2]
[404556564,1770287440820,-1012.36,0.00013199,2]
[404556565,1770287440830,-152.93,0.00013277,2]
[404556566,1770287440841,-1012.36,0.00013473,2]
[404556567,1770287440851,-152.0,0.00013579,5]
[404556568,1770287440860,-500.0,0.00013698,2]
[404556569,1770287440870,-500.0,0.00013698,2]
[404556570,1770287440880,-500.0,0.00013698,2]
[404556571,1770287440891,-500.0,0.00013698,2]
[404556572,1770287440900,-500.0,0.00013698,2]
[404556573,1770287440910,-500.0,0.00013698,2]
[404556574,1770287440920,-500.0,0.00013698,2]
[404556575,1770287440930,-500.0,0.00013698,2]
[404556576,1770287440942,-500.0,0.00013698,2]
[404556577,1770287440952,-500.0,0.00013698,2]
[404556578,1770287440961,-500.0,0.00013698,2]
[404556579,1770287440971,-500.0,0.00013698,2]
[404556580,1770287440981,-500.0,0.00013698,2]
[404556581,1770287440997,-253.41,0.00013698,2]
[404556582,1770287441007,-438.26710356,0.00013698,2]
[404556583,1770287441017,-351.5182,0.00013698,2]
[404556584,1770287441027,-500.0,0.00013698,2]
[404556585,1770287441038,-500.0,0.00013698,2]
[404556586,1770287441047,-457.99797698,0.00013698,2]
[404556587,1770287441058,-1592.82,0.00013699,2]
[404556588,1770287441068,-200.0,0.00013699,2]
[404556589,1770287441077,-1012.36,0.00013747,2]
[404556590,1770287441088,-3292.0,0.00013806,2]
[404556591,1770287441098,-152.0,0.00013858,4]
[404556592,1770287441108,-1000.0,0.00013889,2]
[404556593,1770287441119,-16341.73193584,0.0001396,2]
[404556594,1770287441130,-23859.91974744,0.0001396,2]
[404556595,1770287441140,-391.18246701,0.00013976,2]
[404556596,1770287441153,-1012.36,0.00014021,2]
[404556597,1770287441163,-160.0,0.00014151,2]
[404556598,1770287441174,-152.0,0.00014192,6]
[404556599,1770287441184,-1012.36,0.00014295,2]
[404556600,1770287441195,-736.0,0.0001432,2]
[404556601,1770287441206,-4793.32078072,0.00014354,2]
[404556602,1770287441223,-1592.82,0.00014384,2]
[404556603,1770287441245,-321.3592181,0.00014422,2]
[404556604,1770287441263,-1600.0,0.00014449,2]
[404556605,1770287441277,-1012.36,0.00014568,2]
[404556606,1770287441300,-500.0,0.000146,2]
[404556607,1770287441321,-500.0,0.000146,2]
[404556608,1770287441343,-500.0,0.000146,2]
[404556609,1770287441364,-173.07272258,0.000146,2]
[404556610,1770287441383,-500.0,0.000146,2]
[404556611,1770287441405,-500.0,0.000146,2]
[404556612,1770287441424,-500.0,0.000146,2]
[404556613,1770287441445,-500.0,0.000146,2]
[404556614,1770287441464,-500.0,0.000146,2]
[404556615,1770287441477,-500.0,0.000146,2]
[404556616,1770287441491,-500.0,0.000146,2]
[404556617,1770287441502,-500.0,0.000146,2]
[404556618,1770287441514,-500.0,0.000146,2]
[404556619,1770287441526,-500.0,0.000146,2]
[404556620,1770287441542,-500.0,0.000146,2]
[404556621,1770287441552,-500.0,0.000146,2]
[404556622,1770287441565,-500.0,0.000146,2]
[404556623,1770287441577,-500.0,0.000146,2]
[404556624,1770287441590,-16341.73193584,0.00014748,2]
[404556625,1770287441603,-23859.91974744,0.00014748,2]
[404556626,1770287441615,-152.0,0.00014806,7]
[404556627,1770287441626,-1012.36,0.00014842,2]
[404556628,1770287441637,-401.7300889,0.00014918,2]
[404556629,1770287441651,-152.0,0.00014918,5]
[404556630,1770287441661,-250.0,0.00015,2]
[404556631,1770287441673,-29759.72262329,0.00015,2]
[404556632,1770287441685,-418.21759378,0.00015,2]
[404556633,1770287441698,-152.62,0.00015,2]
[404556634,1770287441709,-1592.82,0.00015068,2]
[404556635,1770287441721,-1012.36,0.00015116,2]
[404556636,1770287441732,-1000.0,0.00015148,2]
[404556637,1770287441745,-1000.0,0.00015148,2]
[404556638,1770287441755,-500.0,0.00015148,2]
[404556639,1770287441765,-347.37162909,0.00015148,2]
[404556640,1770287441775,-4609.0,0.00015186,2]
[404556641,1770287441784,-1517.64,0.000153,2]
[404556642,1770287441794,-1012.36,0.0001539,2]
[404556643,1770287441804,-508.83519453,0.000154,2]
[404556644,1770287441814,-152.0,0.0001542,8]
[404556645,1770287441824,-16341.73193584,0.00015536,2]
[404556646,1770287441834,-23859.91974744,0.00015536,2]
[404556647,1770287441844,-1000.0,0.00015626,2]
[404556648,1770287441854,-3596.00026265,0.00015645,2]
[404556649,1770287441864,-1012.36,0.00015664,2]
[404556650,1770287441874,-538.0,0.00015683,2]
[404556651,1770287441884,-1500.0,0.00015696,2]
[404556652,1770287441893,-1500.0,0.00015696,2]
[404556653,1770287441904,-1592.82,0.00015753,2]
[404556654,1770287441914,-1600.0,0.00015763,2]
[404556655,1770287441924,-152.0173956,0.00015777,2]
[404556656,1770287441934,-2046.60264728,0.00015807,2]
[404556657,1770287441944,-197.54,0.00015918,2]
[404556658,1770287441954,-1012.36,0.00015938,2]
[404556659,1770287441963,-152.0,0.00015978,6]
[404556660,1770287441973,-957.19260386,0.00016,2]
[404556661,1770287441983,-320.47368523,0.00016,2]
[404556662,1770287441992,-5956.53345956,0.00016,2]
[404556663,1770287442228,-200.744485,0.00016,2]
[404556664,1770287442241,-152.0,0.00016034,9]
[404556665,1770287442252,-11901.47782727,0.000162,5]
[404556666,1770287442262,-1012.36,0.00016212,2]
[404556667,1770287442272,-1291.24412758,0.00016244,2]
[404556668,1770287442282,-1004.24108191,0.00016244,2]
[404556669,1770287442292,-192.19,0.00016289,2]
[404556670,1770287442302,-16341.73193584,0.00016324,2]
[404556671,1770287442312,-23859.91974744,0.00016324,2]
[404556672,1770287442321,-152.0173956,0.00016341,2]
[404556673,1770287442332,-164.0,0.000164,2]
[404556674,1770287442342,-1592.82,0.00016438,2]
[404556675,1770287442352,-1012.36,0.00016486,2]
[404556676,1770287442363,-150.0,0.00016543,2]
[404556677,1770287442373,-152.93,0.00016552,2]
[404556678,1770287442383,-2181.71,0.00016619,2]
[404556679,1770287442394,-152.0,0.00016648,10]
[404556680,1770287442404,-323.47,0.00016676,2]
[404556681,1770287442414,-4342.0,0.00016705,2]
[404556682,1770287442425,-1012.36,0.0001676,2]
[404556683,1770287442435,-773.71,0.00016765,2]
[404556684,1770287442445,-152.91785682,0.00016862,2]
[404556685,1770287442455,-2900.0,0.000169,6]
[404556686,1770287442465,-152.0173956,0.00016904,2]
[404556687,1770287442475,-869.18,0.00016963,2]
[404556688,1770287442484,-150.0,0.00016988,2]
[404556689,1770287442494,-1271.0,0.00016988,2]
[404556690,1770287442503,-917.0,0.00016988,2]
[404556691,1770287442513,-1205.0,0.00016988,2]
[404556692,1770287442523,-1411.0,0.00016988,2]
[404556693,1770287442532,-3254.0,0.00016988,2]
[404556694,1770287442542,-1317.0,0.00016988,2]
[404556695,1770287442552,-300.0,0.00017,2]
[404556696,1770287442562,-2034.15123261,0.00017,2]
[404556697,1770287442571,-166.57,0.00017018,2]
[404556698,1770287442582,-951.124593,0.00017023,7]
[404556699,1770287442592,-1012.36,0.00017034,2]
[404556700,1770287442601,-152.0,0.00017038,7]
[404556701,1770287442612,-166.55,0.00017057,2]
[404556702,1770287442622,-218.36339752,0.00017065,2]
[404556703,1770287442632,-389.0,0.00017073,2]
[404556704,1770287442642,-387.0,0.00017093,2]
[404556705,1770287442653,-16341.73193584,0.00017112,2]
[404556706,1770287442663,-23859.91974744,0.00017112,2]
[404556707,1770287442673,-678.2,0.00017134,2]
[404556708,1770287442684,-179.69686723,0.0001716,2]
[404556709,1770287442693,-678.2,0.00017165,2]
[404556710,1770287442703,-389.0,0.00017174,2]
[404556711,1770287442712,-678.2,0.00017197,2]
[404556712,1770287442722,-187.98,0.00017209,2]
[404556713,1770287442731,-423.0,0.00017213,2]
[404556714,1770287442741,-678.2,0.00017228,2]
[404556715,1770287442750,-389.0,0.00017232,2]
[404556716,1770287442760,-2217.21,0.00017237,2]
[404556717,1770287442770,-3596.00026265,0.00017257,2]
[404556718,1770287442779,-678.2,0.0001726,2]
[404556719,1770287442789,-1000.0,0.0001726,2]
[404556720,1770287442799,-152.0,0.00017262,11]
[404556721,1770287442808,-1000.0,0.00017264,2]
[404556722,1770287442818,-1000.0,0.00017264,2]
[404556723,1770287442828,-389.0,0.00017266,2]
[404556724,1770287442838,-389.0,0.00017278,2]
[404556725,1770287442848,-1000.0,0.00017285,2]
[404556726,1770287442858,-1000.0,0.00017285,2]
[404556727,1770287442867,-1000.0,0.00017285,2]
[404556728,1770287442877,-1000.0,0.00017285,2]
[404556729,1770287442887,-1000.0,0.00017285,2]
[404556730,1770287442897,-1000.0,0.00017285,2]
[404556731,1770287442907,-1000.0,0.00017285,2]
[404556732,1770287442917,-1000.0,0.00017285,2]
[404556733,1770287442927,-1000.0,0.00017285,2]
[404556734,1770287442937,-506.851,0.00017285,2]
[404556735,1770287442947,-678.2,0.00017291,2]
[404556736,1770287442956,-423.0,0.00017307,2]
[404556737,1770287442966,-1012.43715052,0.00017308,2]
[404556738,1770287442976,-678.2,0.00017323,2]
[404556739,1770287442986,-152.93,0.00017326,2]
[404556740,1770287442995,-389.0,0.00017343,2]
[404556741,1770287443005,-387.0,0.00017354,2]
[404556742,1770287443015,-678.2,0.00017355,2]
[404556743,1770287443024,-387.0,0.00017357,2]
[404556744,1770287443033,-1000.0,0.00017362,2]
[404556745,1770287443044,-678.2,0.00017386,2]
[404556746,1770287443053,-387.0,0.00017387,2]
[404556747,1770287443063,-500.0,0.000174,6]
[404556749,1770287443073,-678.2,0.00017418,2]
[404556751,1770287443083,-387.0,0.00017434,2]
[404556754,1770287443092,-678.2,0.00017449,2]
[404556755,1770287443102,-152.0173956,0.00017468,2]
[404556757,1770287443111,-678.2,0.00017481,2]
[404556759,1770287443122,-387.0,0.00017487,2]
[404556761,1770287443132,-500.0,0.000175,6]
[404556764,1770287443142,-678.2,0.00017512,2]
[404556765,1770287443152,-1000.0,0.00017534,2]
[404556766,1770287443164,-678.2,0.00017544,2]
[404556767,1770287443174,-387.0,0.00017551,2]
[404556768,1770287443183,-678.2,0.00017575,2]
[404556769,1770287443193,-323.47,0.00017598,2]
[404556770,1770287443203,-500.0,0.000176,6]
[404556771,1770287443213,-389.0,0.00017605,2]
[404556772,1770287443222,-678.2,0.00017607,2]
[404556773,1770287443232,-423.0,0.00017619,2]
[404556774,1770287443243,-166.57,0.00017637,2]
[404556775,1770287443252,-678.2,0.00017639,2]
[404556776,1770287443262,-387.0,0.0001764,2]
[404556777,1770287443271,-678.2,0.0001767,2]
[404556778,1770287443281,-387.0,0.00017681,2]
[404556779,1770287443291,-423.0,0.00017693,2]
[404556780,1770287443301,-500.0,0.000177,6]
[404556781,1770287443310,-440.0,0.000177,2]
[404556782,1770287443320,-678.2,0.00017702,2]
[404556783,1770287443330,-440.0,0.00017707,2]
[404556784,1770287443340,-678.2,0.00017733,2]
[404556785,1770287443350,-389.0,0.00017741,2]
[404556786,1770287443359,-389.0,0.00017749,2]
[404556787,1770287443370,-423.0,0.00017778,2]
[404556788,1770287443379,-449.46388556,0.00017796,2]
[404556789,1770287443389,-1247.0,0.000178,6]
[404556790,1770287443399,-440.0,0.00017805,2]
[404556791,1770287443408,-436.0,0.00017808,2]
[404556792,1770287443418,-1000.0,0.00017808,2]
[404556793,1770287443427,-179.37878,0.0001782,2]
[404556794,1770287443437,-179.37879,0.0001782,2]
[404556795,1770287443447,-440.0,0.0001783,2]
[404556796,1770287443456,-387.0,0.00017834,2]
[404556797,1770287443466,-200.0,0.00017855,2]
[404556798,1770287443476,-500.0,0.00017856,2]
[404556799,1770287443487,-500.0,0.00017856,2]
[404556800,1770287443496,-200.0,0.00017856,2]
[404556801,1770287443506,-436.0,0.00017863,2]
[404556802,1770287443516,-152.0,0.00017875,12]
[404556803,1770287443526,-305.85808466,0.00017899,2]
[404556804,1770287443536,-300.0,0.00017899,2]
[404556805,1770287443546,-666.0,0.00017899,2]
[404556806,1770287443555,-300.0,0.00017899,2]
[404556807,1770287443565,-9068.51831638,0.000179,3]
[404556808,1770287443575,-10000.0,0.000179,2]
[404556809,1770287443585,-25000.0,0.000179,3]
[404556810,1770287443595,-160.0,0.000179,3]
[404556811,1770287443606,-16341.73193584,0.000179,2]
[404556812,1770287443618,-823.28477405,0.000179,2]
[404556813,1770287443628,-23859.91974744,0.000179,2]
[404556814,1770287443637,-4793.32078072,0.000179,2]
[404556815,1770287443646,-411.07033882,0.000179,2]
[404556816,1770287443656,-13815.0,0.000179,2]
[404556817,1770287443667,-436.0,0.00017918,2]
[404556818,1770287443677,-387.0,0.00017933,2]
[404556819,1770287443687,-1000.0,0.00017952,2]
[404556820,1770287443697,-256.366,0.00017952,2]
[404556821,1770287443707,-389.0,0.00017964,2]
[404556822,1770287443717,-500.0,0.0001797,2]
[404556823,1770287443727,-700.0,0.0001797,2]
[404556824,1770287443736,-700.0,0.0001797,2]
[404556825,1770287443746,-1101.54215647,0.0001797,2]
[404556826,1770287443757,-436.0,0.00017972,2]
[404556827,1770287443767,-500.0,0.00017973,2]
[404556828,1770287443777,-500.0,0.00017973,2]
[404556829,1770287443787,-500.0,0.00017973,2]
[404556830,1770287443797,-500.0,0.00017973,2]
[404556831,1770287443807,-500.0,0.00017973,2]
[404556832,1770287443817,-309.44398841,0.00017973,2]
[404556833,1770287443827,-500.0,0.00017973,2]
[404556834,1770287443837,-520.97702983,0.00017973,2]
[404556835,1770287443847,-500.0,0.00017973,2]
[404556836,1770287443856,-500.0,0.00017973,2]
[404556837,1770287443870,-500.0,0.00017973,2]
[404556838,1770287443879,-500.0,0.00017973,2]
[404556839,1770287443889,-500.0,0.00017973,2]
[404556840,1770287443899,-500.0,0.00017973,2]
[404556841,1770287443909,-500.0,0.00017973,2]
[404556842,1770287443918,-500.0,0.00017973,2]
[404556843,1770287443928,-500.0,0.00017973,2]
[404556844,1770287443937,-500.0,0.00017973,2]
[404556845,1770287443947,-500.0,0.00017973,2]
[404556846,1770287443957,-160.11845722,0.00017973,2]
[404556847,1770287443967,-500.0,0.00017973,2]
[404556848,1770287443977,-500.0,0.00017973,2]
[404556849,1770287443987,-500.0,0.00017973,2]
[404556850,1770287443997,-500.0,0.00017973,2]
[404556851,1770287444007,-500.0,0.00017973,2]
[404556852,1770287444017,-500.0,0.00017973,2]
[404556853,1770287444026,-500.0,0.00017973,2]
[404556854,1770287444036,-500.0,0.00017973,2]
[404556855,1770287444046,-500.0,0.00017973,2]
[404556856,1770287444055,-500.0,0.00017973,2]
[404556857,1770287444065,-500.0,0.00017973,2]
[404556858,1770287444075,-500.0,0.00017973,2]
[404556859,1770287444084,-500.0,0.00017973,2]
[404556860,1770287444094,-502.08032841,0.00017973,2]
[404556861,1770287444104,-500.0,0.00017973,2]
[404556862,1770287444115,-561.5530591,0.00017973,2]
[404556863,1770287444124,-500.0,0.00017973,2]
[404556864,1770287444134,-500.0,0.00017973,2]
[404556865,1770287444143,-500.0,0.00017973,2]
[404556867,1770287444154,-500.0,0.00017973,2]
[404556868,1770287444166,-500.0,0.00017973,2]
[404556869,1770287444175,-262.39107038,0.00017973,2]
[404556870,1770287444184,-500.0,0.00017973,2]
[404556871,1770287444195,-500.0,0.00017973,2]
[404556872,1770287444205,-387.0,0.00017976,2]
[404556873,1770287444214,-293.532683,0.00017988,7]
[404556874,1770287444223,-300.0,0.00017989,2]
[404556875,1770287444233,-666.0,0.00017989,2]
[404556876,1770287444243,-300.0,0.00017989,2]
[404556877,1770287444252,-463671.3621919,0.0001799,2]
[404556878,1770287444262,-13257.0995731,0.0001799,2]
[404556879,1770287444271,-93345.42532855,0.0001799,3]
[404556880,1770287444281,-35113.88286834,0.0001799,2]
[404556881,1770287444291,-154.53457251,0.0001799,2]
[404556882,1770287444300,-155.0,0.00017999,2]
[404556883,1770287444310,-300.0,0.00017999,2]
[404556884,1770287444320,-300.0,0.00017999,2]
[404556885,1770287444330,-300.0,0.00017999,2]
[404556886,1770287444340,-666.0,0.00017999,2]
[404556887,1770287444350,-778.44145262,0.00017999,2]
[404556888,1770287444360,-1375319.21370193,0.00018,2]
[404556889,1770287444371,-269850.13735509,0.00018,2]
[404556890,1770287444381,-708971.71124028,0.00018,2]
[404556891,1770287445332,-151.0,0.00014634,2]
[404556892,1770287445342,-478166.79744879,0.00018,2]
[404556893,1770287445353,-362826.86269523,0.00018,2]
[404556894,1770287445364,-2833.19408251,0.00018,2]
[404556895,1770287445486,-1908.95357177,0.00016988,2]
[404556896,1770287445499,-558.04142823,0.00016988,2]
[404556897,1770287445508,-7874.81260188,0.00018,2]
[404556898,1770287445519,-840.55459422,0.00018,2]
[404556899,1770287445642,-7750.0,0.00018,2]
[404556900,1770287445698,-85663.10741045,0.00018,2]
[404556903,1770287445762,-7401.5575112,0.00018,2]
[404556904,1770287445810,-12703.48655946,0.00018,2]
[404556915,1770287639523,300.0,0.000106,3]
[404556916,1770287641608,600.0,0.000107,3]
[404556917,1770287643714,900.0,0.000108,3]
[404556918,1770287645897,1200.0,0.000109,3]
[404556921,1770287776447,152.0,0.00020808,30]
[404556922,1770287783698,152.0,0.00013681,8]
[404556923,1770287784008,152.0,0.00013357,7]
[404556933,1770288631717,-500.0,9.938e-05,2]
[404556934,1770288631727,-150.0,9.938e-05,2]
[404556935,1770288631737,-1200.0,9.963e-05,2]
[404556936,1770288631746,-300.0,9.963e-05,2]
[404556937,1770288631756,-150.0,9.964e-05,2]
[404556938,1770288631766,-170.0,9.964e-05,2]
[404556939,1770288631775,-185.75954176,9.964e-05,2]
[404556940,1770288631785,-500.0,9.964e-05,2]
[404556941,1770288631794,-262.84165351,9.964e-05,2]
[404556942,1770288631804,-500.0,9.964e-05,2]
[404556943,1770288631814,-500.0,9.964e-05,2]
[404556944,1770288631823,-467.07765938,9.964e-05,2]
[404556945,1770288631833,-500.0,9.964e-05,2]
[404556946,1770288631843,-500.0,9.964e-05,2]
[404556947,1770288631852,-500.0,9.964e-05,2]
[404556948,1770288631863,-500.0,9.964e-05,2]
[404556949,1770288631873,-500.0,9.964e-05,2]
[404556950,1770288631883,-500.0,9.964e-05,2]
[404556951,1770288631892,-500.0,9.964e-05,2]
[404556952,1770288631902,-500.0,9.964e-05,2]
[404556953,1770288631912,-500.0,9.964e-05,2]
[404556954,1770288631921,-500.0,9.964e-05,2]
[404556955,1770288631931,-500.0,9.964e-05,2]
[404556956,1770288631941,-500.0,9.964e-05,2]
[404556957,1770288631951,-500.0,9.964e-05,2]
[404556958,1770288631961,-500.0,9.964e-05,2]
[404556959,1770288631970,-500.0,9.964e-05,2]
[404556960,1770288631981,-500.0,9.964e-05,2]
[404556961,1770288631991,-500.0,9.964e-05,2]
[404556962,1770288632001,-500.0,9.964e-05,2]
[404556963,1770288632011,-476.16827608,9.964e-05,2]
[404556964,1770288632023,-23.83172392,9.964e-05,2]
[404556965,1770288632032,-500.0,9.964e-05,2]
[404556967,1770288632042,-500.0,9.964e-05,2]
[404556969,1770288632052,-500.0,9.964e-05,2]
[404556971,1770288632063,-500.0,9.964e-05,2]
[404556973,1770288632073,-500.0,9.964e-05,2]
[404556975,1770288632082,-500.0,9.964e-05,2]
[404556976,1770288632091,-500.0,9.964e-05,2]
[404556978,1770288632101,-500.0,9.964e-05,2]
[404556981,1770288632110,-500.0,9.964e-05,2]
[404556983,1770288632119,-422.66472359,9.964e-05,2]
[404556985,1770288632128,-500.0,9.964e-05,2]
[404556986,1770288632138,-500.0,9.964e-05,2]
[404556987,1770288632148,-500.0,9.964e-05,2]
[404556988,1770288632157,-500.0,9.964e-05,2]
[404556989,1770288632166,-500.0,9.964e-05,2]
[404556990,1770288632177,-500.0,9.964e-05,2]
[404556991,1770288632186,-500.0,9.964e-05,2]
[404556992,1770288632196,-500.0,9.964e-05,2]
[404556993,1770288632205,-500.0,9.964e-05,2]
[404556994,1770288632215,-500.0,9.964e-05,2]
[404556995,1770288632225,-500.0,9.964e-05,2]
[404556996,1770288632235,-500.0,9.964e-05,2]
[404556997,1770288632244,-500.0,9.965e-05,2]
[404556998,1770288632260,-684.03752743,9.965e-05,2]
[404556999,1770288632281,-3195.54718716,9.965e-05,2]
[404557000,1770288632296,-3583.83685121,9.965e-05,2]
[404557001,1770288632310,-603.84235597,9.965e-05,2]
[404557002,1770288632322,-413.403511,9.965e-05,2]
[404557003,1770288632335,-872.66531044,9.965e-05,2]
[404557004,1770288632347,-2701.61761818,9.965e-05,2]
[404557005,1770288632424,-510.78051524,9.965e-05,2]
[404557006,1770288632451,-926.05527075,9.965e-05,2]
[404557007,1770288632478,-188960.419,9.965e-05,2]
[404557008,1770288632556,-596.61311656,9.965e-05,2]
[404557009,1770288632568,-4554.73846656,9.965e-05,2]
[404557010,1770288632580,-4208.02539024,9.965e-05,2]
[404557011,1770288632591,-7260.57737859,9.965e-05,2]
[404557012,1770288632602,-290.05642929,9.965e-05,2]
[404557013,1770288632616,-2152.66125016,9.965e-05,2]
[404557014,1770288632626,-2062.13091084,9.965e-05,2]
[404557015,1770288632641,-1727.69940483,9.965e-05,2]
[404557016,1770288632655,-4328.06566314,9.965e-05,2]
[404557017,1770288632668,-9051.86704959,9.965e-05,2]
[404557018,1770288632684,-2579.82837852,9.965e-05,2]
[404557025,1770288637845,-78610.30744717,9.965e-05,2]
[404557026,1770288637857,-1674.77036001,9.965e-05,2]
[404557027,1770288637895,-846.33812054,9.965e-05,2]
[404557028,1770288637906,-450.58499,9.965e-05,2]
[404557029,1770288637917,-13502.93973259,9.965e-05,2]
[404557030,1770288637929,-2510.8565844,9.965e-05,2]
[404557047,1770288639844,-1668.8510257,9.965e-05,2]
[404557048,1770288639855,-4065.58012154,9.965e-05,2]
[404557049,1770288640053,-3573.50230102,9.965e-05,2]
[404557050,1770288640064,-8572.04603097,9.965e-05,2]
[404557051,1770288640076,-3147139.33941495,9.965e-05,2]
[404557052,1770288640085,-500.0,9.993e-05,2]
[404557053,1770288640094,-154.53457251,0.0001,2]
[404557054,1770288640103,-201.3953049,0.00010048,2]
[404557055,1770288640113,-23813.33,0.00010066,2]
[404557056,1770288640124,-166.66,0.00010187,2]
[404557057,1770288640133,-2217.21,0.00010494,2]
[404557058,1770288640142,-187.98,0.00010494,2]
[404557059,1770288640156,-2500.0,0.00010508,2]
[404557060,1770288640166,-3655.0566225,0.00010508,2]
[404557061,1770288640175,-166.66,0.00010523,2]
[404557062,1770288640185,-4123.3752,0.00010608,2]
[404557063,1770288640194,-200.0,0.00010655,2]
[404557064,1770288640204,-500.0,0.00010702,2]
[404557065,1770288640213,-500.0,0.00010702,2]
[404557066,1770288640222,-500.0,0.00010702,2]
[404557067,1770288640231,-500.0,0.00010702,2]
[404557068,1770288640241,-500.0,0.00010702,2]
[404557069,1770288640250,-500.0,0.00010702,2]
[404557070,1770288640259,-500.0,0.00010702,2]
[404557071,1770288640269,-500.0,0.00010702,2]
[404557072,1770288640279,-500.0,0.00010702,2]
[404557073,1770288640288,-500.0,0.00010702,2]
[404557074,1770288640298,-500.0,0.00010702,2]
[404557075,1770288640307,-200.0,0.00010702,2]
[404557076,1770288640317,-151.0,0.00010702,2]
[404557078,1770288640327,-151.0,0.00010702,2]
[404557080,1770288640337,-151.0,0.00010702,2]
[404557083,1770288640350,-151.0,0.00010702,2]
[404557085,1770288640359,-151.0,0.00010702,2]
[404557087,1770288640370,-151.0,0.00010702,2]
[404557089,1770288640380,-151.0,0.00010702,2]
[404557091,1770288640389,-151.0,0.00010702,2]
[404557093,1770288640398,-151.0,0.00010702,2]
[404557095,1770288640408,-151.0,0.00010702,2]
[404557097,1770288640417,-151.0,0.00010702,2]
[404557099,1770288640427,-151.0,0.00010702,2]
[404557102,1770288640436,-151.0,0.00010702,2]
[404557105,1770288640446,-151.0,0.00010702,2]
[404557107,1770288640455,-151.0,0.00010702,2]
[404557110,1770288640466,-151.0,0.00010702,2]
[404557112,1770288640478,-151.0,0.00010702,2]
[404557113,1770288640488,-151.0,0.00010702,2]
[404557114,1770288640497,-151.0,0.00010702,2]
[404557115,1770288640507,-151.0,0.00010702,2]
[404557116,1770288640517,-151.0,0.00010702,2]
[404557117,1770288640527,-151.0,0.00010702,2]
[404557118,1770288640536,-151.0,0.00010702,2]
[404557119,1770288640550,-151.0,0.00010702,2]
[404557120,1770288640559,-151.0,0.00010702,2]
[404557121,1770288640569,-500.0,0.00010702,2]
[404557122,1770288640578,-151.0,0.00010702,2]
[404557123,1770288640588,-151.0,0.00010702,2]